bitfinex/quotes_ETHUSD_20250520
["timestamp","ask_amount","ask_price","bid_price","bid_amount"]
[1747749488588,4.03438318,2478.7,2478.5,3.80250987]
[1747749488808,4.03438318,2478.7,2478.5,4.18698174]
[1747749489134,4.03453562,2478.6,2478.5,4.18698174]
[1747749489295,4.03453562,2478.6,2478.5,3.28847187]
[1747749489631,0.7757,2479.3,2478.5,3.28847187]
[1747749489929,4.03432761,2478.8,2478.5,0.38447187]
[1747749490125,4.03432761,2478.8,2478.6,8.741319]
[1747749490332,4.03453562,2478.6,2478.5,0.38447187]
[1747749490527,4.0346984,2478.5,2478.4,8.8133]
[1747749490733,4.0346984,2478.5,2478.4,17.6613]
[1747749491727,4.03445993,2478.7,2478.4,36.210179]
[1747749491932,4.80912986,2479.3,2478.5,7.36598]
[1747749492223,4.80912986,2479.3,2478.4,21.56366288]
[1747749492224,4.03431673,2478.8,2478.4,21.56366288]
[1747749492425,4.03431673,2478.8,2478.6,8.0]
[1747749492630,0.814,2479.6,2478.8,8.0]
[1747749492805,4.03382424,2479.1,2479.0,8.0]
[1747749493333,4.03362874,2479.2,2479.0,8.0]
[1747749493498,4.03357325,2479.2,2479.1,19.479327]
[1747749493699,4.03357325,2479.2,2479.1,10.511838]
[1747749494031,4.03357325,2479.2,2479.1,8.0]
[1747749494422,4.03357325,2479.2,2478.9,9.6121]
[1747749494423,4.03388463,2479.0,2478.9,16.848]
[1747749495134,4.03380303,2479.1,2479.0,8.0]
[1747749495433,4.03388463,2479.0,2478.9,10.32054249]
[1747749495635,4.03385968,2479.1,2478.9,13.94654249]
[1747749495802,4.03370718,2479.2,2479.0,15.379055]
[1747749496124,4.03372191,2479.1,2479.0,8.806]
[1747749496331,4.03366329,2479.2,2479.0,16.97602725]
[1747749496514,4.03345397,2479.3,2479.0,10.71865425]
[1747749496719,4.03372191,2479.1,2479.0,10.71865425]
[1747749496931,4.03348971,2479.3,2479.0,14.11377725]
[1747749497134,4.03355921,2479.2,2479.1,0.38467938]
[1747749497429,4.03355921,2479.2,2479.1,28.00690038]
[1747749497629,4.03355921,2479.2,2479.1,25.79867938]
[1747749497833,4.03355921,2479.2,2479.1,17.79867938]
[1747749498034,4.84095921,2479.2,2479.1,26.64567938]
[1747749498639,4.03355921,2479.2,2479.1,26.261]
[1747749498999,4.03355921,2479.2,2479.1,17.414]
[1747749499330,4.84095921,2479.2,2479.1,26.261]
[1747749499532,4.84095921,2479.2,2479.1,17.414]
[1747749499849,4.84095921,2479.2,2479.1,26.261]
[1747749503601,4.84095921,2479.2,2479.1,17.414]
[1747749503805,4.84095921,2479.2,2479.1,26.261]
[1747749505311,4.84095921,2479.2,2479.1,17.414]
[1747749505519,13.39095921,2479.2,2479.1,26.261]
[1747749505719,4.47622189,2479.4,2478.2,0.48081323]
[1747749505720,4.035024,2478.3,2478.2,0.48081323]
[1747749505921,4.84358682,2478.2,2478.1,26.261]
[1747749508438,4.03518682,2478.2,2478.1,26.261]
[1747749508853,4.03518682,2478.2,2478.1,26.263]
[1747749512462,4.03518682,2478.2,2478.1,26.236]
[1747749513328,4.03518682,2478.2,2478.1,17.414]
[1747749513670,4.0366528,2477.3,2477.2,0.48081323]
[1747749513959,4.0366528,2477.3,2477.2,26.72081323]
[1747749514664,4.0366528,2477.3,2477.2,26.24]
[1747749515463,4.0366528,2477.3,2477.2,17.418]
[1747749515665,4.0366528,2477.3,2477.2,26.24]
[1747749516544,4.8595528,2477.3,2477.2,26.24]
[1747749517462,4.8595528,2477.3,2477.2,17.418]
[1747749517663,12.8595528,2477.3,2477.2,17.418]
[1747749518964,13.4095528,2477.3,2477.2,17.418]
[1747749519277,13.4095528,2477.3,2476.2,0.81]
[1747749519278,4.03828292,2476.3,2476.2,0.81]
[1747749519575,4.03828292,2476.3,2476.2,27.055]
[1747749519892,4.03828292,2476.3,2476.2,26.246]
[1747749520270,4.03828292,2476.3,2476.2,17.421]
[1747749520470,4.81068292,2476.3,2476.2,26.246]
[1747749524846,4.81068292,2476.3,2476.2,26.248]
[1747749525646,5.36068292,2476.3,2476.2,8.827]
[1747749526146,4.03942478,2475.6,2475.5,17.43]
[1747749526343,4.04089384,2474.7,2474.6,0.257]
[1747749526551,4.04089384,2474.7,2474.6,34.515]
[1747749526777,4.04089384,2474.7,2474.6,29.68384291]
[1747749526982,4.04089384,2474.7,2474.6,37.68384291]
[1747749527140,4.81732478,2475.6,2474.7,8.0]
[1747749527454,4.04080341,2474.8,2474.6,29.68384291]
[1747749527670,4.04089384,2474.7,2474.6,29.68384291]
[1747749527846,4.04089384,2474.7,2474.6,37.68384291]
[1747749528382,0.7779,2475.6,2474.7,8.0]
[1747749528678,4.04023375,2475.2,2474.9,8.0]
[1747749529378,4.04032031,2475.1,2474.9,8.0]
[1747749529591,4.04040404,2475.0,2474.9,8.0]
[1747749530186,4.04011106,2475.2,2474.9,10.075134]
[1747749530383,0.8189,2475.7,2474.9,8.0]
[1747749530583,4.04040404,2475.0,2474.9,9.26569629]
[1747749530752,4.04040404,2475.0,2474.9,12.26669629]
[1747749531082,4.04040404,2475.0,2474.9,9.26569629]
[1747749532598,4.04040404,2475.0,2474.9,12.20797429]
[1747749532766,4.04040404,2475.0,2474.9,9.26569629]
[1747749533156,4.04040404,2475.0,2474.9,11.46678029]
[1747749533370,4.04040404,2475.0,2474.9,9.26569629]
[1747749533564,4.04040404,2475.0,2474.9,13.85057629]
[1747749534494,4.04040404,2475.0,2474.9,8.0]
[1747749535997,4.04040404,2475.0,2474.9,12.333421]
[1747749536304,4.04040404,2475.0,2474.9,8.0]
[1747749536599,4.04040404,2475.0,2474.9,16.831]
[1747749536810,4.04040404,2475.0,2474.9,8.831]
[1747749537162,4.04073056,2474.8,2474.7,8.0]
[1747749537419,4.04073056,2474.8,2474.7,16.831]
[1747749538005,4.04073056,2474.8,2474.7,19.2593]
[1747749538157,4.84603477,2475.5,2474.7,23.856406]
[1747749538357,4.04073056,2474.8,2474.7,20.6017]
[1747749538558,4.04073056,2474.8,2474.7,23.732342]
[1747749539361,4.04047579,2475.0,2474.7,23.732342]
[1747749539560,4.04066188,2474.9,2474.8,8.0]
[1747749541091,4.04066188,2474.9,2474.8,16.832]
[1747749544175,4.04089384,2474.7,2474.6,25.687]
[1747749544363,4.04089384,2474.7,2474.6,17.687]
[1747749544803,4.04089384,2474.7,2474.6,26.488]
[1747749546238,4.81609384,2474.7,2474.6,26.488]
[1747749546746,4.81609384,2474.7,2474.6,17.687]
[1747749546914,4.81609384,2474.7,2474.6,26.488]
[1747749547120,4.81609384,2474.7,2474.6,17.687]
[1747749548031,4.81609384,2474.7,2473.7,0.48081323]
[1747749548032,4.04236397,2473.8,2473.7,0.48081323]
[1747749548210,4.04236397,2473.8,2473.7,26.72281323]
[1747749548408,4.04230695,2473.9,2473.7,29.31414123]
[1747749548738,4.04204185,2474.0,2473.8,8.0]
[1747749549441,4.04220057,2473.9,2473.8,8.0]
[1747749549800,4.04220057,2473.9,2473.8,16.802]
[1747749550125,4.04220057,2473.9,2473.8,17.18729894]
[1747749550300,4.04220057,2473.9,2473.8,0.38529894]
[1747749550500,4.04220057,2473.9,2473.8,9.18729894]
[1747749551940,4.04220057,2473.9,2473.8,8.802]
[1747749554955,4.04220057,2473.9,2473.8,16.802]
[1747749555868,4.04220057,2473.9,2473.8,16.804]
[1747749556346,0.7738,2474.7,2474.0,0.8157]
[1747749556686,4.81427693,2475.0,2474.0,0.8157]
[1747749556854,4.04154471,2474.4,2474.0,0.8157]
[1747749557019,8.0,2474.8,2474.0,0.8157]
[1747749557020,8.0,2474.6,2474.1,0.38500756]
[1747749557368,4.04151473,2474.4,2474.1,0.38500756]
[1747749557653,4.04151473,2474.4,2474.1,0.90929046]
[1747749557654,4.041463,2474.4,2474.1,0.90929046]
[1747749558057,4.041463,2474.4,2474.2,0.38500756]
[1747749558258,4.04127181,2474.5,2474.3,9.5622]
[1747749558461,4.04115582,2474.6,2474.3,9.5622]
[1747749558961,4.04138376,2474.4,2474.3,9.5622]
[1747749559984,4.04138376,2474.4,2474.3,1.14320756]
[1747749560117,4.04138376,2474.4,2474.3,9.18900756]
[1747749560319,4.04138376,2474.4,2474.3,0.38500756]
[1747749560519,4.04138376,2474.4,2474.3,9.18900756]
[1747749560720,12.04138376,2474.4,2474.3,9.18900756]
[1747749561330,12.04138376,2474.4,2474.3,8.804]
[1747749564337,4.04236397,2473.8,2473.7,18.71171323]
[1747749564637,4.04228204,2473.9,2473.7,35.033356]
[1747749564935,4.04211438,2474.0,2473.8,12.499086]
[1747749565263,4.04211438,2474.0,2473.8,5.25623]
[1747749565430,4.04211438,2474.0,2473.8,7.540397]
[1747749565637,4.04184181,2474.2,2473.8,7.540397]
[1747749565833,12.04123389,2474.5,2473.9,0.38561853]
[1747749566076,4.04123389,2474.5,2473.9,0.38561853]
[1747749566275,4.04203069,2474.1,2473.9,0.38561853]
[1747749566485,4.04203069,2474.1,2474.0,4.733382]
[1747749566638,4.04203069,2474.1,2474.0,4.323552]
[1747749566842,4.04203069,2474.1,2474.0,3.530784]
[1747749567164,4.04203718,2474.0,2473.9,0.38561853]
[1747749567359,4.04203718,2474.0,2473.9,2.1354]
[1747749567575,4.04203718,2474.0,2473.7,27.0349]
[1747749567786,4.04203718,2474.0,2473.8,2.857308]
[1747749568457,4.04220057,2473.9,2473.8,10.857308]
[1747749568657,4.04220057,2473.9,2473.8,8.0]
[1747749568865,0.8184,2474.7,2473.9,0.38583476]
[1747749569085,4.041658,2474.3,2473.9,12.28819764]
[1747749569383,4.0416275,2474.3,2473.9,12.28819764]
[1747749569544,4.04140149,2474.4,2474.0,0.8127]
[1747749569744,4.04169336,2474.3,2474.0,0.8127]
[1747749569981,4.04172855,2474.2,2474.0,0.8127]
[1747749570176,4.04187381,2474.1,2474.0,2.52702487]
[1747749570341,4.04187381,2474.1,2474.0,0.8127]
[1747749571161,4.04105714,2474.6,2474.0,0.8127]
[1747749571361,0.8125,2474.9,2474.1,0.04041567]
[1747749571552,4.04163502,2474.3,2474.2,16.804]
[1747749572441,4.04163502,2474.3,2474.2,17.1900736]
[1747749572642,0.8125,2474.9,2474.2,35.53243396]
[1747749572875,4.04139001,2474.4,2474.2,18.99035096]
[1747749573045,4.85312338,2474.9,2474.2,18.99035096]
[1747749574075,4.8531645,2474.9,2474.3,0.3860736]
[1747749574272,4.04078639,2474.8,2474.3,0.3860736]
[1747749575492,4.04065525,2474.9,2474.3,2.8908087]
[1747749575990,4.04076169,2474.8,2474.3,2.8908087]
[1747749576195,4.04064637,2474.9,2474.4,0.8318]
[1747749576390,4.04074784,2474.8,2474.4,0.8318]
[1747749577360,4.04094149,2474.7,2474.4,0.8318]
[1747749577556,4.04073064,2474.8,2474.4,11.06448861]
[1747749577755,4.04073064,2474.8,2474.5,0.3860736]
[1747749578104,4.04073064,2474.8,2474.6,17.445]
[1747749578254,4.85640207,2475.2,2474.8,8.0]
[1747749578255,0.8163,2475.2,2474.8,8.0]
[1747749578457,4.85651305,2475.2,2474.8,8.0]
[1747749578683,4.04000329,2475.3,2474.8,8.0]
[1747749578898,4.04043085,2475.0,2474.8,8.0]
[1747749579390,0.7629,2475.4,2474.8,8.0]
[1747749579789,4.04053824,2475.0,2474.9,0.3860736]
[1747749580370,4.04033797,2475.1,2474.9,0.3860736]
[1747749580574,4.04016508,2475.2,2475.0,8.0]
[1747749580898,4.04024079,2475.1,2475.0,8.0]
[1747749582560,4.03998944,2475.3,2475.0,8.0]
[1747749582869,4.03985205,2475.4,2475.2,8.0]
[1747749583068,4.03985205,2475.4,2475.3,8.767]
[1747749583456,4.03985205,2475.4,2475.3,15.751058]
[1747749583868,4.03991435,2475.3,2475.2,8.0]
[1747749584069,4.03991435,2475.3,2475.2,16.767]
[1747749584290,4.03991435,2475.3,2475.2,18.870365]
[1747749584596,4.03983393,2475.4,2475.2,21.3630015]
[1747749584794,4.03983393,2475.4,2475.3,12.024949]
[1747749584999,4.03983393,2475.4,2475.3,6.242747]
[1747749585284,4.03983393,2475.4,2475.3,13.468747]
[1747749585486,4.04056729,2474.9,2474.8,0.48081323]
[1747749585816,4.04056729,2474.9,2474.8,9.24781323]
[1747749586795,4.04056729,2474.9,2474.8,16.767]
[1747749589712,4.04056729,2474.9,2474.6,17.445]
[1747749589713,4.04089384,2474.7,2474.6,17.445]
[1747749590042,4.04089384,2474.7,2474.6,26.212]
[1747749591011,4.04089384,2474.7,2474.6,17.445]
[1747749591211,4.04089384,2474.7,2474.6,26.212]
[1747749597899,4.80319384,2474.7,2474.6,26.212]
[1747749600117,12.22720255,2475.5,2474.6,26.212]
[1747749600429,4.04089384,2474.7,2474.6,17.445]
[1747749600640,4.04089384,2474.7,2474.6,26.213]
[1747749601223,0.35069286,2475.7,2474.7,8.0]
[1747749601427,1.27293437,2476.5,2474.9,8.55]
[1747749601631,4.03853491,2476.2,2474.9,8.55]
[1747749601795,1.27293437,2476.5,2474.9,8.55]
[1747749601796,4.03828292,2476.3,2474.9,8.55]
[1747749601995,4.04056729,2474.9,2474.8,0.7764]
[1747749602222,4.04056729,2474.9,2474.7,0.62956476]
[1747749602223,4.04073056,2474.8,2474.7,0.62956476]
[1747749603532,4.04089384,2474.7,2474.6,8.768]
[1747749603732,4.04067364,2474.9,2474.6,14.992635]
[1747749603934,4.0403629,2475.1,2474.7,0.7528]
[1747749604100,4.04048556,2475.0,2474.7,8.7528]
[1747749604802,4.04061547,2474.9,2474.7,8.7528]
[1747749605107,4.04061547,2474.9,2474.6,9.6448]
[1747749605108,4.04061547,2474.9,2474.8,8.73]
[1747749605315,4.04061547,2474.9,2474.4,0.7887]
[1747749605316,4.04122044,2474.5,2474.4,0.66332]
[1747749605534,4.04088765,2474.8,2474.4,12.40358655]
[1747749605836,4.85455616,2475.3,2474.5,9.24035866]
[1747749606004,4.0407023,2474.9,2474.5,9.24035866]
[1747749606510,4.04052038,2475.0,2474.5,13.28155937]
[1747749606715,4.03979778,2475.4,2474.5,9.24035866]
[1747749606910,4.04050392,2475.0,2474.6,0.38611021]
[1747749607110,0.8182,2475.5,2474.7,19.116369]
[1747749607326,4.03953541,2475.6,2474.7,8.0]
[1747749607528,4.04000932,2475.3,2474.9,8.0]
[1747749607744,4.03975115,2475.4,2475.1,8.0]
[1747749607929,0.7779,2476.5,2475.3,8.0]
[1747749608100,0.7779,2476.5,2475.5,8.0]
[1747749608305,0.7779,2476.5,2475.6,16.73]
[1747749608306,4.03926162,2475.7,2475.6,16.73]
[1747749608513,4.03926162,2475.7,2475.6,8.73]
[1747749610431,4.03991435,2475.3,2475.2,0.7971]
[1747749610607,4.03964927,2475.5,2475.2,15.85778456]
[1747749610807,4.03975115,2475.4,2475.3,0.22596422]
[1747749611037,4.03975115,2475.4,2475.3,8.95496422]
[1747749612347,4.03975115,2475.4,2475.3,8.729]
[1747749613545,4.04018222,2475.2,2475.1,8.0]
[1747749613855,4.04018222,2475.2,2475.1,20.14407869]
[1747749614040,4.04018222,2475.2,2475.1,8.95396536]
[1747749614216,4.04024079,2475.1,2475.0,17.443]
[1747749614419,4.04024079,2475.1,2475.0,26.171]
[1747749614607,4.03950671,2475.6,2475.1,8.0]
[1747749614809,4.03953576,2475.6,2475.3,8.0]
[1747749615035,4.03895518,2475.9,2475.3,8.0]
[1747749615561,4.03952592,2475.6,2475.3,8.0]
[1747749615765,4.03958812,2475.5,2475.3,8.0]
[1747749615926,4.03958812,2475.5,2475.4,0.22599795]
[1747749616132,4.03919169,2475.8,2475.4,9.22196616]
[1747749616332,4.03942478,2475.6,2475.5,16.728]
[1747749616665,4.03942478,2475.6,2475.5,21.23100295]
[1747749617370,4.03942478,2475.6,2475.5,19.16630695]
[1747749617673,4.03942478,2475.6,2475.5,19.82512755]
[1747749617868,4.03942478,2475.6,2475.5,20.21070468]
[1747749618047,0.8256,2476.2,2475.5,20.21070468]
[1747749618248,0.8256,2476.2,2475.6,0.7841]
[1747749618542,4.03942478,2475.6,2475.5,0.61157508]
[1747749618745,4.03942478,2475.6,2475.5,9.11257713]
[1747749619972,4.03942478,2475.6,2475.5,8.727]
[1747749620557,4.85572478,2475.6,2475.5,8.727]
[1747749620743,4.85654079,2475.1,2475.0,17.443]
[1747749620934,4.85654079,2475.1,2474.8,9.20959555]
[1747749620935,4.04056729,2474.9,2474.8,9.20959555]
[1747749621135,4.83446729,2474.9,2474.8,9.20959555]
[1747749621531,4.83446729,2474.9,2474.8,8.727]
[1747749621736,4.83446729,2474.9,2474.8,9.5997]
[1747749621968,4.04056729,2474.9,2474.8,8.727]
[1747749622181,4.04138376,2474.4,2474.3,18.2549]
[1747749622361,4.04138376,2474.4,2474.3,37.892615]
[1747749622949,4.04130461,2474.5,2474.4,8.0]
[1747749623176,0.833,2475.6,2474.6,0.7885]
[1747749623392,0.833,2475.6,2474.9,8.0]
[1747749623393,4.04002827,2475.3,2474.9,8.0]
[1747749623539,4.03909847,2475.8,2475.1,8.0]
[1747749623739,4.03991435,2475.3,2475.2,25.439]
[1747749624071,4.03991435,2475.3,2475.2,17.439]
[1747749624472,4.03991435,2475.3,2475.2,26.167]
[1747749626491,4.03991435,2475.3,2475.2,46.833289]
[1747749626685,4.03991435,2475.3,2475.2,49.95265188]
[1747749626848,4.03991435,2475.3,2475.2,50.75165188]
[1747749627056,4.03991435,2475.3,2475.2,38.86836288]
[1747749627387,4.03991435,2475.3,2475.2,41.86836288]
[1747749628176,4.03991435,2475.3,2475.2,43.04836288]
[1747749628373,4.03983996,2475.4,2475.3,8.0]
[1747749628551,4.03983996,2475.4,2475.3,11.90236288]
[1747749629183,4.03991435,2475.3,2475.2,17.439]
[1747749629376,4.03991435,2475.3,2475.2,26.167]
[1747749630188,4.03991435,2475.3,2475.2,17.439]
[1747749630398,4.03991435,2475.3,2475.2,26.167]
[1747749631158,4.03965429,2475.5,2475.2,34.167]
[1747749631353,4.03766225,2476.7,2475.2,34.167]
[1747749631354,0.8048,2476.3,2475.3,4.2488]
[1747749631554,4.03763071,2476.7,2475.3,8.0]
[1747749631555,4.03975115,2475.4,2475.3,8.0]
[1747749631755,4.03975115,2475.4,2475.3,16.728]
[1747749632372,4.03991435,2475.3,2475.2,17.439]
[1747749632573,4.03991435,2475.3,2475.2,26.167]
[1747749633811,4.03991435,2475.3,2475.2,17.439]
[1747749634008,4.84461435,2475.3,2475.2,26.137]
[1747749637295,4.03991435,2475.3,2475.2,26.137]
[1747749638462,4.03991435,2475.3,2475.2,17.439]
[1747749638668,4.03991435,2475.3,2475.2,26.137]
[1747749639703,4.03991435,2475.3,2475.2,17.439]
[1747749639890,4.03991435,2475.3,2475.2,26.137]
[1747749639891,4.82471435,2475.3,2475.2,26.137]
[1747749642501,4.82471435,2475.3,2475.2,8.698]
[1747749644019,4.04105714,2474.6,2474.5,17.441]
[1747749644195,4.04105714,2474.6,2474.5,44.255009]
[1747749644367,4.04105714,2474.6,2474.5,41.176453]
[1747749644703,4.04105714,2474.6,2474.5,39.6647]
[1747749645279,4.04088,2474.8,2474.5,39.6647]
[1747749645485,0.8249,2475.6,2474.7,0.7758]
[1747749645682,4.03910619,2475.8,2475.0,8.7758]
[1747749645886,4.03998423,2475.3,2475.2,8.0]
[1747749646105,4.03998423,2475.3,2475.2,15.652526]
[1747749646324,4.03963957,2475.5,2475.2,13.622141]
[1747749646610,4.03779374,2476.6,2475.6,0.8096]
[1747749646818,10.9341,2476.7,2475.6,0.8096]
[1747749646819,4.03926162,2475.7,2475.6,0.8096]
[1747749646974,4.03912882,2475.8,2475.7,17.442]
[1747749647799,4.03912882,2475.8,2475.7,26.141]
[1747749648280,4.03912882,2475.8,2475.7,17.442]
[1747749648480,4.04056729,2474.9,2474.8,0.48259555]
[1747749648702,4.04056729,2474.9,2474.8,34.62159555]
[1747749648902,0.8223,2476.1,2475.0,0.7779]
[1747749649101,4.03992577,2475.3,2475.0,0.7779]
[1747749649312,4.03992577,2475.3,2475.1,11.568247]
[1747749649512,4.04043368,2475.0,2474.8,17.82580122]
[1747749649692,4.04056729,2474.9,2474.8,25.82580122]
[1747749650015,4.04043368,2475.0,2474.8,37.18285134]
[1747749650016,4.0404752,2475.0,2474.8,37.18285134]
[1747749650204,4.0404752,2475.0,2474.9,8.0]
[1747749650617,4.0404752,2475.0,2474.9,8.38580122]
[1747749650913,4.0404752,2475.0,2474.9,17.08480122]
[1747749651619,4.0404752,2475.0,2474.9,8.38580122]
[1747749651806,4.0404752,2475.0,2474.9,17.08480122]
[1747749652003,4.0404752,2475.0,2474.9,16.699]
[1747749652797,4.04056729,2474.9,2474.8,17.44]
[1747749653297,4.04056729,2474.9,2474.8,26.139]
[1747749654318,4.04056729,2474.9,2474.8,28.7529]
[1747749656315,4.04056729,2474.9,2474.8,38.221753]
[1747749656515,4.04056729,2474.9,2474.8,26.139]
[1747749657812,4.84506729,2474.9,2474.8,26.139]
[1747749658892,12.84506729,2474.9,2474.8,26.139]
[1747749660307,4.04056729,2474.9,2474.8,26.139]
[1747749662995,12.86186729,2474.9,2474.8,17.44]
[1747749663234,12.86186729,2474.9,2474.8,26.14]
[1747749663391,12.86186729,2474.9,2474.8,8.7]
[1747749663392,17.08906984,2474.9,2474.8,8.7]
[1747749663589,4.04171045,2474.2,2474.1,17.443]
[1747749663929,4.04171045,2474.2,2474.1,26.143]
[1747749664529,12.04171045,2474.2,2474.1,26.143]
[1747749665758,4.04171045,2474.2,2474.1,26.143]
[1747749666115,4.04334465,2473.2,2473.1,0.7753]
[1747749666317,4.04334465,2473.2,2473.1,26.8903]
[1747749666624,4.04334465,2473.2,2473.1,17.443]
[1747749666827,4.04334465,2473.2,2473.1,26.116]
[1747749668450,4.04334465,2473.2,2473.1,8.673]
[1747749668614,4.04530744,2472.0,2471.9,0.48259555]
[1747749668814,4.04530744,2472.0,2471.9,9.15559555]
[1747749669050,4.04530744,2472.0,2471.9,11.87861158]
[1747749669347,4.04530744,2472.0,2471.9,12.67301158]
[1747749669548,4.04494268,2472.3,2472.0,8.0]
[1747749669854,4.0451438,2472.1,2472.0,8.0]
[1747749670057,4.04494268,2472.3,2472.0,11.684375]
[1747749670230,4.04498017,2472.2,2472.1,2.3874791]
[1747749670555,4.04383517,2472.9,2472.2,8.0]
[1747749670721,0.7542,2473.0,2472.1,2.3874791]
[1747749671056,4.04481656,2472.3,2472.2,6.059]
[1747749671419,4.04481656,2472.3,2472.1,8.84433842]
[1747749671724,4.0439987,2472.8,2472.2,1.68443384]
[1747749671924,4.04456705,2472.5,2472.3,0.7667]
[1747749672125,4.0444234,2472.6,2472.5,8.0]
[1747749672538,4.04448938,2472.5,2472.4,8.675]
[1747749672739,4.04448938,2472.5,2472.4,16.675]
[1747749673255,4.04448938,2472.5,2472.4,18.26504814]
[1747749674123,4.04448938,2472.5,2472.4,16.675]
[1747749676027,4.04448938,2472.5,2472.4,8.675]
[1747749676229,4.04484711,2472.3,2471.8,8.7592]
[1747749676423,4.04530744,2472.0,2471.9,8.678]
[1747749677433,4.04523466,2472.1,2471.9,8.678]
[1747749677647,4.0451438,2472.1,2472.0,0.94372]
[1747749678061,4.04547109,2471.9,2471.8,8.7592]
[1747749678266,4.04547109,2471.9,2471.8,17.4372]
[1747749679765,4.04547109,2471.9,2471.8,8.678]
[1747749681502,4.04432581,2472.6,2471.9,0.7529]
[1747749681685,4.04530744,2472.0,2471.9,0.7529]
[1747749681992,4.0450818,2472.2,2471.9,14.082474]
[1747749682198,4.04475674,2472.4,2472.0,0.55]
[1747749682499,4.0449874,2472.2,2472.0,0.55]
[1747749682661,4.0449874,2472.2,2472.1,5.33838]
[1747749682848,4.0451438,2472.1,2472.0,0.55]
[1747749683048,4.0451438,2472.1,2472.0,1.816849]
[1747749683627,4.0451438,2472.1,2472.0,1.266849]
[1747749683923,4.04506957,2472.2,2472.0,3.428842]
[1747749684182,4.0451438,2472.1,2472.0,1.266849]
[1747749685362,4.0451438,2472.1,2472.0,8.68]
[1747749687100,4.0451438,2472.1,2472.0,11.11648]
[1747749687604,4.04530744,2472.0,2471.9,3.44049]
[1747749687806,4.04530744,2472.0,2471.9,12.12049]
[1747749689814,4.04530744,2472.0,2471.9,15.067278]
[1747749690339,4.04530744,2472.0,2471.9,12.12049]
[1747749690516,4.04530744,2472.0,2471.9,15.33397]
[1747749690719,4.04530744,2472.0,2471.9,12.12049]
[1747749690882,4.04530744,2472.0,2471.9,8.68]
[1747749691079,4.04530744,2472.0,2471.7,24.2952]
[1747749691080,4.04563476,2471.8,2471.7,18.2332]
[1747749691277,4.04563476,2471.8,2471.7,38.712648]
[1747749692120,4.04563476,2471.8,2471.7,17.445]
[1747749692268,4.04563476,2471.8,2471.7,26.125]
[1747749693771,4.86573476,2471.8,2471.7,26.126]
[1747749696299,4.80634455,2471.0,2470.9,17.463]
[1747749696648,4.80634455,2471.0,2470.9,26.118]
[1747749696986,4.80634455,2471.0,2470.9,17.463]
[1747749700706,4.04672561,2471.2,2470.9,20.0748]
[1747749700926,0.8215,2471.7,2471.0,8.815]
[1747749701143,0.8149,2472.0,2471.1,0.04046682]
[1747749701349,0.8149,2472.5,2471.2,26.767572]
[1747749701559,4.04559437,2471.9,2471.5,8.0]
[1747749701704,4.0458407,2471.7,2471.5,8.0]
[1747749701907,4.04572961,2471.8,2471.5,8.0]
[1747749702201,0.8149,2472.5,2471.4,0.8039]
[1747749702202,4.04581322,2471.7,2471.4,8.8039]
[1747749702403,4.04596212,2471.6,2471.5,1.24195026]
[1747749703450,4.04628955,2471.4,2471.2,8.0]
[1747749703608,4.04661702,2471.2,2471.1,0.48259555]
[1747749703808,4.04661702,2471.2,2471.1,9.13859555]
[1747749704247,4.04654929,2471.3,2471.2,8.0]
[1747749704423,4.04640201,2471.4,2471.2,18.05811636]
[1747749704618,4.04640201,2471.4,2471.3,11.323927]
[1747749704849,4.04640201,2471.4,2471.3,8.0]
[1747749705210,4.04640201,2471.4,2471.3,8.656]
[1747749705409,4.04661702,2471.2,2471.1,0.48259555]
[1747749705711,4.04653397,2471.3,2471.1,19.25055956]
[1747749706043,4.04661702,2471.2,2471.1,16.656]
[1747749706257,4.04661702,2471.2,2471.1,8.0]
[1747749706556,4.04661702,2471.2,2470.9,17.463]
[1747749706557,4.04694455,2471.0,2470.9,17.463]
[1747749706846,4.04694455,2471.0,2470.9,26.119]
[1747749710038,0.7637,2472.1,2471.0,0.7784]
[1747749710207,4.04530744,2472.0,2471.1,3.48974]
[1747749710544,0.7637,2472.1,2471.2,8.0]
[1747749710545,4.04620333,2471.5,2471.2,8.0]
[1747749710713,4.04566569,2471.8,2471.2,8.0]
[1747749711039,4.04645328,2471.3,2471.2,8.0]
[1747749711608,4.04645328,2471.3,2471.2,19.496188]
[1747749711809,4.04645328,2471.3,2471.2,19.0334328]
[1747749712638,4.04645328,2471.3,2471.2,21.7372288]
[1747749712859,4.04645328,2471.3,2471.2,19.0334328]
[1747749713026,4.04645328,2471.3,2471.2,16.657]
[1747749713539,4.04678078,2471.1,2471.0,8.7784]
[1747749713725,4.04678078,2471.1,2471.0,17.4354]
[1747749713931,4.04678078,2471.1,2471.0,16.657]
[1747749714328,4.04694455,2471.0,2470.9,17.463]
[1747749714532,4.04694455,2471.0,2470.9,26.12]
[1747749719059,4.82364455,2471.0,2470.9,26.12]
[1747749720121,4.04694455,2471.0,2470.9,26.12]
[1747749722761,0.763,2471.7,2470.9,28.81365]
[1747749722923,4.04692835,2471.1,2470.9,29.19987235]
[1747749723126,4.04692835,2471.1,2471.0,8.0]
[1747749724561,4.04694455,2471.0,2470.9,17.463]
[1747749724863,4.04694455,2471.0,2470.9,26.121]
[1747749727942,4.04694455,2471.0,2470.9,35.17105072]
[1747749728964,4.04694455,2471.0,2470.9,34.121]
[1747749729288,0.8199,2472.0,2471.1,0.8013]
[1747749729434,4.8652236,2472.0,2471.2,14.65645551]
[1747749729635,4.04614765,2471.5,2471.3,8.0]
[1747749729827,4.04614765,2471.5,2471.4,8.633]
[1747749730166,4.04526871,2472.1,2471.6,4.84725743]
[1747749730344,4.04432581,2472.6,2471.7,9.21889]
[1747749730561,4.04490367,2472.3,2472.0,0.8114]
[1747749730745,4.04490367,2472.3,2472.1,8.633]
[1747749731348,4.04283296,2473.6,2472.2,8.0]
[1747749731548,4.04358573,2473.1,2472.6,8.0]
[1747749731751,4.04359242,2473.1,2472.8,8.0]
[1747749731967,0.7724,2473.7,2472.8,8.0]
[1747749731968,4.81498638,2473.7,2472.8,8.0]
[1747749732266,4.04383517,2472.9,2472.8,14.066]
[1747749732588,4.0439987,2472.8,2472.7,17.47]